[Event "EYTCC U18 Open 2019"]
[Site "Pardubice"]
[Date "2019.07.12"]
[Round "2.2"]
[White "Ozsakallioglu, Akin"]
[Black "Pechac, Jergus"]
[Result "1/2-1/2"]
[ECO "C48"]
[WhiteElo "1901"]
[BlackElo "2469"]
[Annotator "ChessBase"]
[PlyCount "148"]
[EventDate "2019.07.11"]
[EventType "swiss"]
[EventCountry "CZE"]
[SourceTitle "playchess.com"]
[Source "ChessBase"]
[SourceQuality "1"]
[WhiteTeam "Turkey"]
[BlackTeam "Slovakia"]
[WhiteTeamCountry "TUR"]
[BlackTeamCountry "SVK"]
[TimeControl "40/5400+30:1800+30"]

1. e4 {[%emt 0:00:00]} e5 {[%emt 0:00:00]} 2. Nf3 {[%emt 0:00:00]} Nf6 {[%emt 0:00:00]} 3. Nc3 {[%emt 0:00:13]} Nc6 {[%emt 0:00:00]} 4. Bb5 {[%emt 0:00:18]} Nd4 {[%emt 0:00:04]} 5. Ba4 {[%emt 0:00:50]} Nxf3+ {[%emt 0:02:34]} 6. Qxf3 {[%emt 0:00:06]} Bc5 {[%emt 0:00:26]} 7. d3 {[%emt 0:08:36]} c6 {[%emt 0:00:08]} 8. h3 {[%emt 0:00:26]} O-O {[%emt 0:00:19]} 9. Bb3 {[%emt 0:00:07]} a5 {[%emt 0:03:04]} 10. O-O {[%emt 0:07:23]} Re8 {[%emt 0:03:03]} 11. a3 {[%emt 0:00:59]} h6 {[%emt 0:01:19]} 12. Ne2 {[%emt 0:07:38]} d5 {[%emt 0:01:02]} 13. Ng3 {[%emt 0:00:08]} Bf8 {[%emt 0:03:01]} 14. Rd1 {[%emt 0:13:52]} Be6 {[%emt 0:00:25]} 15. c4 {[%emt 0:04:17]} Qb6 {[%emt 0:01:43]} 16. cxd5 {[%emt 0:14:26]} Qxb3 {[%emt 0:00:25]} 17. dxe6 {[%emt 0:00:06]} Rxe6 {[%emt 0:00:26]} 18. d4 {[%emt 0:00:30]} Qxf3 {[%emt 0:01:33]} 19. gxf3 {[%emt 0:00:04]} exd4 {[%emt 0:08:17]} 20. Rxd4 {[%emt 0:00:25]} c5 {[%emt 0:00:19]} 21. Rd3 {[%emt 0:05:17]} c4 {[%emt 0:01:51]} 22. Rc3 {[%emt 0:01:28]} Rc8 {[%emt 0:01:54]} 23. Be3 {[%emt 0:05:22]} b5 {[%emt 0:01:00]} 24. Nf5 {[%emt 0:01:40]} b4 {[%emt 0:01:51]} 25. axb4 {[%emt 0:00:55]} axb4 {[%emt 0:00:07]} 26. Rc2 {[%emt 0:01:41]} Nd7 {[%emt 0:00:13]} 27. Rac1 {[%emt 0:01:33]} c3 {[%emt 0:03:18]} 28. bxc3 {[%emt 0:01:17]} b3 {[%emt 0:00:08]} 29. Re2 {[%emt 0:06:29]} Ba3 {[%emt 0:01:19]} 30. Rd1 {[%emt 0:05:10]} Ne5 {[%emt 0:00:17]} 31. f4 {[%emt 0:01:02]} Nc4 {[%emt 0:00:20]} 32. Bd4 {[%emt 0:00:21]} Kh7 {[%emt 0:05:08]} 33. e5 {[%emt 0:03:55]} Kg6 {[%emt 0:08:36]} 34. Ne3 {[%emt 0:07:03]} Nxe3 {[%emt 0:00:08]} 35. fxe3 {[%emt 0:00:03]} Kf5 {[%emt 0:00:12]} 36. e4+ {[%emt 0:00:04]} Kxf4 {[%emt 0:00:11]} 37. Rf1+ {[%emt 0:00:08]} Kg5 {[%emt 0:01:32]} 38. Rf5+ {[%emt 0:01:02]} Kg6 {[%emt 0:00:23]} 39. Rg2+ {[%emt 0:00:04]} Kh7 {[%emt 0:00:09]} 40. Rxf7 {[%emt 0:00:03]} Rg8 {[%emt 0:04:29]} 41. Rb7 {[%emt 0:30:20]} b2 {[%emt 0:30:15]} 42. c4 {[%emt 0:00:46]} Re7 {[%emt 0:00:08]} 43. Rb3 {[%emt 0:02:08]} Rc8 {[%emt 0:00:13]} 44. Bxb2 {[%emt 0:01:42]} Bxb2 {[%emt 0:00:09]} 45. Rgxb2 {[%emt 0:00:21]} Rxc4 {[%emt 0:00:16]} 46. Rb7 {[%emt 0:00:18]} Rxb7 {[%emt 0:00:42]} 47. Rxb7 {[%emt 0:00:19]} Rxe4 {[%emt 0:00:08]} 48. Re7 {[%emt 0:00:12]} Re2 {[%emt 0:00:39]} 49. Kh1 {[%emt 0:01:18]} Kg8 {[%emt 0:00:22]} 50. e6 {[%emt 0:00:27]} Kh7 {[%emt 0:00:06]} 51. Kg1 {[%emt 0:00:10]} Kg6 {[%emt 0:00:05]} 52. Kh1 {[%emt 0:00:06]} Re5 {[%emt 0:00:32]} 53. Kh2 {[%emt 0:00:13]} Re3 {[%emt 0:00:19]} 54. Kg2 {[%emt 0:00:14]} h5 {[%emt 0:00:09]} 55. Kh2 {[%emt 0:00:24]} h4 {[%emt 0:00:39]} 56. Kg2 {[%emt 0:00:11]} Rg3+ {[%emt 0:01:17]} 57. Kh2 {[%emt 0:00:11]} Kf6 {[%emt 0:00:27]} 58. Re8 {[%emt 0:00:20]} g5 {[%emt 0:00:33]} 59. Rf8+ {[%emt 0:00:20]} Ke7 {[%emt 0:00:49]} 60. Rf2 {[%emt 0:01:38]} Re3 {[%emt 0:00:48]} 61. Ra2 {[%emt 0:01:33]} Kxe6 {[%emt 0:00:11]} 62. Kg2 {[%emt 0:00:12]} Kf5 {[%emt 0:00:13]} 63. Rf2+ {[%emt 0:01:04]} Ke4 {[%emt 0:00:09]} 64. Ra2 {[%emt 0:00:09]} Rg3+ {[%emt 0:00:11]} 65. Kh2 {[%emt 0:00:04]} Rd3 {[%emt 0:00:05]} 66. Rg2 {[%emt 0:00:00]} Rd5 {[%emt 0:00:00]} 67. Rg4+ {[%emt 0:00:00]} Kf3 {[%emt 0:00:00]} 68. Kh1 {[%emt 0:00:00]} Kf2 {[%emt 0:00:00]} 69. Kh2 {[%emt 0:00:00]} Rf5 {[%emt 0:00:00]} 70. Rg2+ {[%emt 0:00:00]} Ke3 {[%emt 0:00:00]} 71. Rg4 {[%emt 0:00:00]} Ke2 {[%emt 0:00:00]} 72. Kg2 {[%emt 0:00:00]} Re5 {[%emt 0:00:00]} 73. Kh2 {[%emt 0:00:00]} Kf3 {[%emt 0:00:00]} 74. Kh1 {[%emt 0:00:00]} Rd5 1/2-1/2

[Event "EYTCC U18 Open 2019"]
[Site "Pardubice"]
[Date "2019.07.12"]
[Round "2.3"]
[White "Haring, Filip"]
[Black "Ozdemir, Serhan Berat"]
[Result "0-1"]
[ECO "B41"]
[WhiteElo "2334"]
[BlackElo "1985"]
[Annotator "NA"]
[PlyCount "84"]
[EventDate "2019.07.11"]
[EventType "swiss"]
[EventCountry "CZE"]
[SourceTitle "playchess.com"]
[Source "ChessBase"]
[SourceQuality "1"]
[WhiteTeam "Slovakia"]
[BlackTeam "Turkey"]
[WhiteTeamCountry "SVK"]
[BlackTeamCountry "TUR"]
[TimeControl "40/5400+30:1800+30"]

1. e4 {[%emt 0:00:00]} c5 {[%emt 0:00:00]} 2. Nf3 {[%emt 0:00:00]} e6 {[%emt 0:00:00]} 3. d4 {[%emt 0:00:09]} cxd4 {[%emt 0:00:00]} 4. Nxd4 {[%emt 0:00:15]} a6 {[%emt 0:00:09]} 5. c4 {[%emt 0:01:56]} Nf6 {[%emt 0:00:20]} 6. Nc3 {[%emt 0:00:14]} Qc7 {[%emt 0:00:22]} 7. Be2 {[%emt 0:01:36]} b6 {[%emt 0:02:48]} 8. O-O {[%emt 0:03:16]} Bb7 {[%emt 0:00:04]} 9. f3 {[%emt 0:00:45]} d6 {[%emt 0:02:22]} 10. Be3 {[%emt 0:01:04]} Be7 {[%emt 0:00:12]} 11. Rc1 {[%emt 0:02:32]} O-O {[%emt 0:02:24]} 12. b4 {[%emt 0:01:28]} Nbd7 {[%emt 0:02:35]} 13. Qe1 {[%emt 0:05:17]} Rfc8 {[%emt 0:06:59]} 14. g4 {[%emt 0:05:17]} Ne5 {[%emt 0:08:04]} 15. g5 {[%emt 0:03:49]} Nfd7 {[%emt 0:01:02]} 16. f4 {[%emt 0:14:46]} Nc6 {[%emt 0:09:20]} 17. Nc2 {[%emt 0:08:36]} Rab8 {[%emt 0:09:38]} 18. h4 {[%emt 0:06:06]} Qd8 {[%emt 0:01:12]} 19. Qg3 {[%emt 0:01:52]} Ba8 {[%emt 0:12:08]} 20. h5 {[%emt 0:03:52]} Bf8 {[%emt 0:05:27]} 21. a3 {[%emt 0:10:55]} Qe8 {[%emt 0:10:56]} 22. Ne1 {[%emt 0:06:13]} a5 {[%emt 0:02:27]} 23. Nf3 {[%emt 0:06:05]} axb4 {[%emt 0:00:41]} 24. axb4 {[%emt 0:00:34]} d5 {[%emt 0:01:37]} 25. g6 {[%emt 0:01:38]} hxg6 {[%emt 0:01:15]} 26. hxg6 {[%emt 0:00:51]} fxg6 {[%emt 0:00:34]} 27. cxd5 {[%emt 0:01:46]} Nd8 {[%emt 0:04:08]} 28. Ng5 {[%emt 0:05:51]} Bxb4 {[%emt 0:02:14]} 29. Qh3 {[%emt 0:02:31]} Nf8 {[%emt 0:00:29]} 30. Nb5 {[%emt 0:02:41]} Rxc1 {[%emt 0:04:23]} 31. Rxc1 {[%emt 0:00:05]} exd5 {[%emt 0:00:52]} 32. Rc7 {[%emt 0:02:15]} Nde6 {[%emt 0:02:18]} 33. exd5 {[%emt 0:01:39]} Bxd5 {[%emt 0:03:22]} 34. Ra7 {[%emt 0:00:12]} Nxg5 {[%emt 0:00:41]} 35. fxg5 {[%emt 0:00:14]} Bc5 {[%emt 0:01:29]} 36. Nd4 {[%emt 0:01:05]} Ne6 {[%emt 0:01:50]} 37. Bb5 {[%emt 0:00:28]} Nxg5 {[%emt 0:02:08]} 38. Qg3 {[%emt 0:00:31]} Qxe3+ {[%emt 0:00:26]} 39. Qxe3 {[%emt 0:00:09]} Bxd4 {[%emt 0:00:01]} 40. Rxg7+ {[%emt 0:00:09]} Kh8 {[%emt 0:00:53]} 41. Re7 {[%emt 0:01:37]} Bxe3+ {[%emt 0:01:50]} 42. Rxe3 {[%emt 0:00:05]} Kg7 {[%emt 0:01:28]} 0-1

[Event "EYTCC U18 Open 2019"]
[Site "Pardubice"]
[Date "2019.07.12"]
[Round "2.4"]
[White "Buke, Furkan"]
[Black "Sahidi, Samir"]
[Result "1/2-1/2"]
[ECO "C80"]
[WhiteElo "1959"]
[BlackElo "2369"]
[Annotator "NA"]
[PlyCount "146"]
[EventDate "2019.07.11"]
[EventType "swiss"]
[EventCountry "CZE"]
[SourceTitle "playchess.com"]
[Source "ChessBase"]
[SourceQuality "1"]
[WhiteTeam "Turkey"]
[BlackTeam "Slovakia"]
[WhiteTeamCountry "TUR"]
[BlackTeamCountry "SVK"]
[TimeControl "40/5400+30:1800+30"]

1. e4 {[%emt 0:00:00]} e5 {[%emt 0:00:00]} 2. Nf3 {[%emt 0:00:00]} Nc6 {[%emt 0:00:00]} 3. Bb5 {[%emt 0:00:00]} a6 {[%emt 0:01:28]} 4. Ba4 {[%emt 0:00:00]} Nf6 {[%emt 0:03:11]} 5. O-O {[%emt 0:00:22]} Nxe4 {[%emt 0:01:14]} 6. Re1 {[%emt 0:01:12]} Nc5 {[%emt 0:01:45]} 7. Bxc6 {[%emt 0:03:16]} dxc6 {[%emt 0:00:08]} 8. d4 {[%emt 0:02:29]} Ne6 {[%emt 0:00:12]} 9. Nxe5 {[%emt 0:00:56]} Be7 {[%emt 0:01:18]} 10. Be3 {[%emt 0:09:08]} O-O {[%emt 0:07:54]} 11. Nc3 {[%emt 0:01:37]} Bd6 {[%emt 0:02:26]} 12. Nc4 {[%emt 0:12:42]} Bb4 {[%emt 0:03:46]} 13. Qd3 {[%emt 0:02:40]} Re8 {[%emt 0:02:52]} 14. a3 {[%emt 0:02:22]} Bf8 {[%emt 0:04:40]} 15. Rad1 {[%emt 0:02:32]} b6 {[%emt 0:01:53]} 16. Ne5 {[%emt 0:09:26]} Bb7 {[%emt 0:00:29]} 17. Qf5 {[%emt 0:01:19]} Qf6 {[%emt 0:07:21]} 18. Qxf6 {[%emt 0:01:47]} gxf6 {[%emt 0:00:07]} 19. Ng4 {[%emt 0:01:12]} Kg7 {[%emt 0:01:06]} 20. Bh6+ {[%emt 0:04:35]} Kg6 {[%emt 0:00:08]} 21. Bxf8 {[%emt 0:00:09]} Rxf8 {[%emt 0:01:31]} 22. d5 {[%emt 0:07:31]} cxd5 {[%emt 0:01:38]} 23. Nxd5 {[%emt 0:02:42]} f5 {[%emt 0:03:44]} 24. Ne5+ {[%emt 0:00:16]} Kg7 {[%emt 0:00:49]} 25. Ne3 {[%emt 0:04:22]} f4 {[%emt 0:01:58]} 26. Nf5+ {[%emt 0:00:07]} Kf6 {[%emt 0:00:28]} 27. Nd4 {[%emt 0:01:03]} Rad8 {[%emt 0:03:21]} 28. Nxe6 {[%emt 0:12:15]} Rxd1 {[%emt 0:00:25]} 29. Rxd1 {[%emt 0:00:36]} Kxe6 {[%emt 0:00:10]} 30. Nd3 {[%emt 0:04:48]} f3 {[%emt 0:02:39]} 31. Nf4+ {[%emt 0:00:18]} Kf5 {[%emt 0:01:57]} 32. g3 {[%emt 0:00:10]} Re8 {[%emt 0:01:18]} 33. Kf1 {[%emt 0:04:46]} Bc6 {[%emt 0:02:51]} 34. b3 {[%emt 0:03:52]} a5 {[%emt 0:02:25]} 35. a4 {[%emt 0:02:17]} Re5 {[%emt 0:01:56]} 36. Re1 {[%emt 0:01:34]} Be4 {[%emt 0:00:54]} 37. Rc1 {[%emt 0:01:19]} c6 {[%emt 0:11:13]} 38. c4 {[%emt 0:01:53]} b5 {[%emt 0:00:53]} 39. axb5 {[%emt 0:00:18]} cxb5 {[%emt 0:00:06]} 40. cxb5 {[%emt 0:00:23]} Rxb5 {[%emt 0:00:17]} 41. Ke1 {[%emt 0:30:24]} Ke5 {[%emt 0:32:38]} 42. Rc3 {[%emt 0:01:46]} Kd4 {[%emt 0:12:53]} 43. Rc4+ {[%emt 0:00:12]} Ke5 {[%emt 0:00:26]} 44. Rc3 {[%emt 0:00:07]} Kd6 {[%emt 0:00:00]} 45. Kd2 {[%emt 0:00:00]} f5 {[%emt 0:00:00]} 46. h4 {[%emt 0:00:00]} Rb4 {[%emt 0:00:00]} 47. Ke3 {[%emt 0:00:00]} Bc6 {[%emt 0:00:00]} 48. Kd2 {[%emt 0:00:00]} Rb8 {[%emt 0:00:00]} 49. Ke3 {[%emt 0:00:00]} Re8+ {[%emt 0:00:00]} 50. Kd2 {[%emt 0:00:00]} Re5 {[%emt 0:00:00]} 51. Rc1 {[%emt 0:00:00]} Kc7 {[%emt 0:00:02]} 52. Re1 {[%emt 0:00:00]} Be4 {[%emt 0:00:17]} 53. Rc1+ {[%emt 0:00:00]} Kb7 {[%emt 0:00:50]} 54. Rc4 {[%emt 0:00:00]} Kb6 {[%emt 0:00:54]} 55. Rd4 {[%emt 0:00:00]} Rc5 {[%emt 0:02:02]} 56. Nd3 {[%emt 0:00:00]} Rc7 {[%emt 0:01:52]} 57. Rd8 {[%emt 0:00:00]} Re7 {[%emt 0:02:09]} 58. Nf4 {[%emt 0:00:00]} Kb5 {[%emt 0:01:14]} 59. Rd4 {[%emt 0:00:00]} Bc6 {[%emt 0:00:46]} 60. Kd1 {[%emt 0:00:00]} Re4 {[%emt 0:04:01]} 61. Rd8 {[%emt 0:00:00]} Kb4 {[%emt 0:00:28]} 62. Kc2 {[%emt 0:00:00]} Re7 {[%emt 0:01:26]} 63. Rd6 {[%emt 0:01:52]} Rc7 {[%emt 0:01:55]} 64. Kb2 {[%emt 0:00:36]} Be4 {[%emt 0:01:07]} 65. Rd4+ {[%emt 0:03:23]} Kb5 {[%emt 0:00:10]} 66. Rd2 {[%emt 0:00:07]} Re7 {[%emt 0:02:00]} 67. Kc3 {[%emt 0:01:40]} Ra7 {[%emt 0:01:10]} 68. Ne6 {[%emt 0:01:22]} Kc6 {[%emt 0:01:41]} 69. Nd4+ {[%emt 0:01:18]} Kb6 {[%emt 0:00:06]} 70. Ne6 {[%emt 0:00:14]} Kc6 {[%emt 0:01:08]} 71. Nd4+ {[%emt 0:00:05]} Kb6 {[%emt 0:00:50]} 72. Ne6 {[%emt 0:00:04]} Kb5 {[%emt 0:00:46]} 73. Nd4+ {[%emt 0:00:16]} Kb6 {[%emt 0:00:27]} 1/2-1/2

[Event "EYTCC U18 Open 2019"]
[Site "Pardubice"]
[Date "2019.07.12"]
[Round "2.5"]
[White "Subelj, Jan"]
[Black "Zarubitski, Viachaslau"]
[Result "0-1"]
[ECO "C42"]
[WhiteElo "2425"]
[BlackElo "2424"]
[Annotator "NA"]
[PlyCount "92"]
[EventDate "2019.07.11"]
[EventType "swiss"]
[EventCountry "CZE"]
[SourceTitle "playchess.com"]
[Source "ChessBase"]
[SourceQuality "1"]
[WhiteTeam "Slovenia"]
[BlackTeam "Belarus"]
[WhiteTeamCountry "SLO"]
[BlackTeamCountry "BLR"]
[TimeControl "40/5400+30:1800+30"]

1. e4 {[%emt 0:00:00]} e5 {[%emt 0:00:00]} 2. Nf3 {[%emt 0:00:00]} Nf6 {[%emt 0:00:00]} 3. Nxe5 {[%emt 0:00:21]} d6 {[%emt 0:00:00]} 4. Nf3 {[%emt 0:00:10]} Nxe4 {[%emt 0:00:00]} 5. c4 {[%emt 0:00:54]} Be7 {[%emt 0:00:00]} 6. Nc3 {[%emt 0:03:30]} Nxc3 {[%emt 0:00:00]} 7. dxc3 {[%emt 0:00:10]} O-O {[%emt 0:01:12]} 8. Bd3 {[%emt 0:03:42]} Nd7 {[%emt 0:00:11]} 9. Be3 {[%emt 0:05:10]} Ne5 {[%emt 0:09:47]} 10. Nxe5 {[%emt 0:02:27]} dxe5 {[%emt 0:00:04]} 11. Qc2 {[%emt 0:00:42]} f5 {[%emt 0:01:17]} 12. O-O-O {[%emt 0:01:55]} Qe8 {[%emt 0:03:28]} 13. f3 {[%emt 0:10:20]} Be6 {[%emt 0:01:24]} 14. g4 {[%emt 0:01:56]} e4 {[%emt 0:03:41]} 15. fxe4 {[%emt 0:00:06]} fxg4 {[%emt 0:00:35]} 16. Be2 {[%emt 0:10:56]} Qg6 {[%emt 0:06:37]} 17. Kb1 {[%emt 0:15:25]} Bg5 {[%emt 0:08:35]} 18. Bd4 {[%emt 0:03:14]} h5 {[%emt 0:10:17]} 19. Rhf1 {[%emt 0:08:40]} Bf4 {[%emt 0:03:56]} 20. Rf2 {[%emt 0:06:41]} Qg5 {[%emt 0:00:21]} 21. Rg2 {[%emt 0:03:37]} c5 {[%emt 0:03:00]} 22. Bf2 {[%emt 0:00:05]} Qe5 {[%emt 0:02:40]} 23. Bg3 {[%emt 0:03:00]} Rad8 {[%emt 0:01:51]} 24. Rdg1 {[%emt 0:01:08]} Rd7 {[%emt 0:00:57]} 25. Rf1 {[%emt 0:07:11]} Rdf7 {[%emt 0:02:49]} 26. Rd1 {[%emt 0:00:51]} Rd7 {[%emt 0:03:55]} 27. Rf1 {[%emt 0:01:21]} g5 {[%emt 0:00:05]} 28. Rgf2 {[%emt 0:02:32]} Rdf7 {[%emt 0:02:30]} 29. Qd3 {[%emt 0:00:07]} Kg7 {[%emt 0:05:42]} 30. a3 {[%emt 0:00:12]} Kh6 {[%emt 0:05:24]} 31. Rg2 {[%emt 0:02:46]} Bxg3 {[%emt 0:04:32]} 32. Rxf7 {[%emt 0:00:42]} Bxf7 {[%emt 0:00:16]} 33. Qxg3 {[%emt 0:00:17]} Qxe4+ {[%emt 0:00:54]} 34. Bd3 {[%emt 0:00:05]} Qxd3+ {[%emt 0:00:16]} 35. Qxd3 {[%emt 0:00:05]} Bg6 {[%emt 0:00:01]} 36. Qxg6+ {[%emt 0:00:18]} Kxg6 {[%emt 0:00:01]} 37. Kc2 {[%emt 0:00:12]} h4 {[%emt 0:00:07]} 38. b4 {[%emt 0:00:14]} b6 {[%emt 0:00:29]} 39. bxc5 {[%emt 0:00:17]} bxc5 {[%emt 0:00:02]} 40. Kd3 {[%emt 0:00:08]} g3 {[%emt 0:00:49]} 41. hxg3 {[%emt 0:30:13]} Rf3+ {[%emt 0:30:16]} 42. Ke4 {[%emt 0:00:10]} Rxg3 {[%emt 0:00:04]} 43. Rh2 {[%emt 0:00:09]} h3 {[%emt 0:00:32]} 44. Kd5 {[%emt 0:00:11]} g4 {[%emt 0:00:04]} 45. Kxc5 {[%emt 0:00:04]} Rg2 {[%emt 0:00:04]} 46. Rh1 {[%emt 0:00:06]} h2 {[%emt 0:00:02]} 0-1

[Event "EYTCC U18 Open 2019"]
[Site "Pardubice"]
[Date "2019.07.12"]
[Round "2.6"]
[White "Lazavik, Denis"]
[Black "Stevanic, David"]
[Result "1/2-1/2"]
[ECO "E68"]
[WhiteElo "2339"]
[BlackElo "2306"]
[Annotator "NA"]
[PlyCount "125"]
[EventDate "2019.07.11"]
[EventType "swiss"]
[EventCountry "CZE"]
[SourceTitle "playchess.com"]
[Source "ChessBase"]
[SourceQuality "1"]
[WhiteTeam "Belarus"]
[BlackTeam "Slovenia"]
[WhiteTeamCountry "BLR"]
[BlackTeamCountry "SLO"]
[TimeControl "40/5400+30:1800+30"]

1. d4 {[%emt 0:00:00]} Nf6 {[%emt 0:00:00]} 2. c4 {[%emt 0:00:16]} g6 {[%emt 0:00:00]} 3. g3 {[%emt 0:00:27]} d6 {[%emt 0:00:17]} 4. Nc3 {[%emt 0:01:57]} Bg7 {[%emt 0:00:06]} 5. Bg2 {[%emt 0:00:07]} O-O {[%emt 0:00:24]} 6. Nf3 {[%emt 0:00:07]} Nbd7 {[%emt 0:00:10]} 7. O-O {[%emt 0:00:14]} e5 {[%emt 0:00:45]} 8. e4 {[%emt 0:00:21]} exd4 {[%emt 0:00:36]} 9. Nxd4 {[%emt 0:00:09]} Re8 {[%emt 0:00:15]} 10. h3 {[%emt 0:00:22]} Nc5 {[%emt 0:00:27]} 11. Re1 {[%emt 0:00:09]} Bd7 {[%emt 0:01:01]} 12. Kh2 {[%emt 0:00:15]} h6 {[%emt 0:02:19]} 13. Rb1 {[%emt 0:00:10]} a5 {[%emt 0:00:42]} 14. Ndb5 {[%emt 0:04:15]} Bc6 {[%emt 0:07:21]} 15. f3 {[%emt 0:01:47]} h5 {[%emt 0:18:58]} 16. Be3 {[%emt 0:16:43]} Nfd7 {[%emt 0:14:14]} 17. h4 {[%emt 0:16:53]} Be5 {[%emt 0:18:37]} 18. Bg5 {[%emt 0:00:33]} Qb8 {[%emt 0:02:55]} 19. Nd5 {[%emt 0:12:01]} Ne6 {[%emt 0:09:00]} 20. Be3 {[%emt 0:04:03]} Bxb5 {[%emt 0:05:31]} 21. cxb5 {[%emt 0:00:08]} c6 {[%emt 0:00:27]} 22. bxc6 {[%emt 0:01:15]} bxc6 {[%emt 0:00:11]} 23. Nc3 {[%emt 0:00:20]} Nf6 {[%emt 0:02:02]} 24. Bf2 {[%emt 0:01:46]} Qc7 {[%emt 0:02:26]} 25. Kg1 {[%emt 0:01:19]} Nd7 {[%emt 0:06:26]} 26. f4 {[%emt 0:03:27]} Bg7 {[%emt 0:00:04]} 27. Rc1 {[%emt 0:00:09]} Rab8 {[%emt 0:02:20]} 28. b3 {[%emt 0:01:33]} c5 {[%emt 0:02:00]} 29. Ne2 {[%emt 0:01:35]} Nf6 {[%emt 0:00:40]} 30. Kh1 {[%emt 0:01:22]} Ng4 {[%emt 0:00:54]} 31. Bg1 {[%emt 0:00:03]} Qe7 {[%emt 0:01:08]} 32. Qd2 {[%emt 0:00:57]} Rb4 {[%emt 0:00:24]} 33. Nc3 {[%emt 0:01:39]} Nc7 {[%emt 0:01:11]} 34. e5 {[%emt 0:07:27]} dxe5 {[%emt 0:01:17]} 35. Nd5 {[%emt 0:00:15]} Nxd5 {[%emt 0:00:04]} 36. Bxc5 {[%emt 0:00:52]} Qd8 {[%emt 0:00:59]} 37. Qxd5 {[%emt 0:00:21]} Rb8 {[%emt 0:01:18]} 38. Bd6 {[%emt 0:02:45]} e4 {[%emt 0:00:53]} 39. Qc5 {[%emt 0:00:47]} Rb4 {[%emt 0:00:35]} 40. Qc7 {[%emt 0:02:43]} Qxc7 {[%emt 0:00:28]} 41. Rxc7 {[%emt 0:30:32]} Rd4 {[%emt 0:05:46]} 42. Bc5 {[%emt 0:00:00]} Rd2 {[%emt 0:01:14]} 43. Bg1 {[%emt 0:00:00]} e3 {[%emt 0:10:30]} 44. Bc6 {[%emt 0:00:00]} Re6 {[%emt 0:09:51]} 45. Bb5 {[%emt 0:00:00]} Bd4 {[%emt 0:03:35]} 46. Bc4 {[%emt 0:00:00]} Rf6 {[%emt 0:01:30]} 47. a4 {[%emt 0:00:00]} Bb6 {[%emt 0:00:52]} 48. Rb7 {[%emt 0:00:00]} Bc5 {[%emt 0:00:08]} 49. Rc7 {[%emt 0:00:00]} Bb6 {[%emt 0:00:07]} 50. Rb7 {[%emt 0:00:00]} Bc5 {[%emt 0:00:04]} 51. Rc7 {[%emt 0:00:00]} Rf5 {[%emt 0:01:40]} 52. Rb7 {[%emt 0:00:28]} Bb4 {[%emt 0:00:40]} 53. Re2 {[%emt 0:01:05]} Rd1 {[%emt 0:00:22]} 54. Kg2 {[%emt 0:00:15]} Bd2 {[%emt 0:00:17]} 55. Rd7 {[%emt 0:01:33]} Rc1 {[%emt 0:00:38]} 56. Rexd2 {[%emt 0:02:41]} exd2 {[%emt 0:00:05]} 57. Rxd2 {[%emt 0:00:04]} Kf8 {[%emt 0:00:52]} 58. Bd4 {[%emt 0:00:55]} Re1 {[%emt 0:00:33]} 59. Bd3 {[%emt 0:00:32]} Rd5 {[%emt 0:00:23]} 60. Bc4 {[%emt 0:00:07]} Rf5 {[%emt 0:00:36]} 61. Bd3 {[%emt 0:00:23]} Rd5 {[%emt 0:00:07]} 62. Bc4 {[%emt 0:00:04]} Rf5 {[%emt 0:00:43]} 63. Bd3 {[%emt 0:00:13]} 1/2-1/2